fUSD/lending_fUSD_20240712
["ID","MTS","AMOUNT","RATE_DAILY","PERIOD"]
[331773630,1720758654552,-1359.7,0.00013841,2]
[331773631,1720758654562,-708.71,0.00013841,2]
[331773632,1720758654571,-1294.23,0.00013841,2]
[331773633,1720758654580,-1564.21,0.00013841,2]
[331773634,1720758654590,-557.87663592,0.00013841,2]
[331773635,1720758654599,-761.03,0.00013841,2]
[331773636,1720758654608,-500.0,0.00013841,2]
[331773637,1720758654618,-993.48,0.00013841,2]
[331773638,1720758654627,-500.0,0.00013841,2]
[331773639,1720758654637,-794.46,0.00013841,2]
[331773640,1720758654646,-500.0,0.00013841,2]
[331773641,1720758654655,-500.0,0.00013841,2]
[331773642,1720758654664,-500.0,0.00013841,2]
[331773643,1720758654673,-677.22,0.00013841,2]
[331773644,1720758654683,-500.0,0.00013841,2]
[331773645,1720758654692,-563.31,0.00013841,2]
[331773646,1720758654701,-517.9,0.00013841,2]
[331773647,1720758654710,-701.32,0.00013841,2]
[331773648,1720758654721,-924.74,0.00013841,2]
[331773649,1720758654732,-1270.13,0.00013841,2]
[331773650,1720758654743,-500.0,0.00013841,2]
[331773651,1720758654752,-1168.36,0.00013841,2]
[331773652,1720758654762,-830.61,0.00013841,2]
[331773653,1720758654771,-500.0,0.00013841,2]
[331773654,1720758654780,-500.0,0.00013841,2]
[331773655,1720758654789,-432.64253103,0.00013841,2]
[331773656,1720758654801,-500.0,0.00013841,2]
[331773657,1720758654812,-777.96,0.00013841,2]
[331773658,1720758654823,-784.77,0.00013841,2]
[331773659,1720758654834,-500.0,0.00013841,2]
[331773660,1720758654844,-1569.26,0.00013841,2]
[331773661,1720758654854,-764.63,0.00013841,2]
[331773662,1720758654865,-500.0,0.00013841,2]
[331773663,1720758654875,-815.13,0.00013841,2]
[331773664,1720758654884,-500.0,0.00013841,2]
[331773665,1720758654893,-1683.08,0.00013841,2]
[331773666,1720758654904,-768.06,0.00013841,2]
[331773667,1720758654914,-229.6,0.00013841,2]
[331773668,1720758654931,-500.0,0.00013841,2]
[331773669,1720758654942,-851.93,0.00013841,2]
[331773670,1720758654954,-1238.01,0.00013841,2]
[331773671,1720758654964,-500.0,0.00013841,2]
[331773672,1720758654975,-518.34,0.00013841,2]
[331773673,1720758654987,-717.7,0.00013841,2]
[331773674,1720758654997,-1693.52,0.00013841,2]
[331773675,1720758655006,-1094.11,0.00013841,2]
[331773676,1720758655017,-500.0,0.00013841,2]
[331773677,1720758655028,-507.61,0.00013841,2]
[331773678,1720758655038,-500.0,0.00013841,2]
[331773679,1720758655048,-886.83,0.00013841,2]
[331773680,1720758655058,-500.0,0.00013841,2]
[331773681,1720758655067,-614.13,0.00013841,2]
[331773682,1720758655077,-500.0,0.00013841,2]
[331773683,1720758655087,-500.0,0.00013841,2]
[331773684,1720758655097,-892.4,0.00013841,2]
[331773685,1720758655108,-479.09405316,0.00013841,2]
[331773686,1720758655119,-500.0,0.00013841,2]
[331773687,1720758655130,-525.88,0.00013841,2]
[331773688,1720758655140,-500.0,0.00013841,2]
[331773689,1720758655150,-500.0,0.00013841,2]
[331773690,1720758655159,-500.0,0.00013841,2]
[331773691,1720758655169,-588.35,0.00013841,2]
[331773692,1720758655179,-500.0,0.00013841,2]
[331773693,1720758655189,-1397.01,0.00013841,2]
[331773694,1720758655198,-500.0,0.00013841,2]
[331773695,1720758655208,-500.0,0.00013841,2]
[331773696,1720758655217,-500.0,0.00013841,2]
[331773697,1720758655227,-500.0,0.00013841,2]
[331773698,1720758655237,-589.59,0.00013841,2]
[331773699,1720758655249,-500.0,0.00013841,2]
[331773700,1720758655259,-500.0,0.00013841,2]
[331773701,1720758655269,-730.81,0.00013841,2]
[331773702,1720758655279,-500.0,0.00013841,2]
[331773703,1720758655290,-817.94,0.00013841,2]
[331773704,1720758655300,-500.0,0.00013841,2]
[331773705,1720758655310,-540.85,0.00013841,2]
[331773706,1720758655320,-500.0,0.00013841,2]
[331773707,1720758655330,-509.31,0.00013841,2]
[331773708,1720758655341,-786.31,0.00013841,2]
[331773709,1720758655350,-875.18,0.00013841,2]
[331773710,1720758655360,-888.22,0.00013841,2]
[331773711,1720758655369,-549.6,0.00013841,2]
[331773712,1720758655379,-1401.22,0.00013841,2]
[331773713,1720758655389,-810.45,0.00013841,2]
[331773714,1720758655400,-667.36,0.00013841,2]
[331773715,1720758655410,-507.24,0.00013841,2]
[331773716,1720758655420,-500.0,0.00013841,2]
[331773717,1720758655430,-779.1,0.00013841,2]
[331773718,1720758655440,-864.53,0.00013841,2]
[331773719,1720758655452,-922.96,0.00013841,2]
[331773720,1720758655461,-500.0,0.00013841,2]
[331773721,1720758655473,-500.0,0.00013841,2]
[331773722,1720758655482,-671.41,0.00013841,2]
[331773723,1720758655493,-543.85,0.00013841,2]
[331773724,1720758655504,-598.04,0.00013841,2]
[331773725,1720758655514,-986.72,0.00013841,2]
[331773726,1720758655524,-500.0,0.00013841,2]
[331773727,1720758655536,-618.73,0.00013841,2]
[331773728,1720758655546,-305.41,0.00013841,2]
[331773729,1720758655556,-500.0,0.00013841,2]
[331773730,1720758655566,-500.0,0.00013841,2]
[331773731,1720758655577,-500.0,0.00013841,2]
[331773732,1720758655587,-500.0,0.00013841,2]
[331773733,1720758655597,-500.0,0.00013841,2]
[331773734,1720758655607,-786.28,0.00013841,2]
[331773735,1720758655617,-740.92,0.00013841,2]
[331773736,1720758655627,-604.37,0.00013841,2]
[331773737,1720758655637,-500.0,0.00013841,2]
[331773738,1720758655647,-538.55,0.00013841,2]
[331773739,1720758655657,-538.0,0.00013841,2]
[331773740,1720758655667,-1448.91,0.00013841,2]
[331773741,1720758655678,-500.0,0.00013841,2]
[331773742,1720758655687,-500.0,0.00013841,2]
[331773743,1720758655697,-642.33,0.00013841,2]
[331773744,1720758655707,-500.0,0.00013841,2]
[331773745,1720758655717,-500.0,0.00013841,2]
[331773746,1720758655727,-1361.18,0.00013841,2]
[331773747,1720758655737,-500.0,0.00013841,2]
[331773748,1720758655747,-500.0,0.00013841,2]
[331773749,1720758655757,-500.0,0.00013841,2]
[331773750,1720758655767,-266.62,0.00013841,2]
[331773751,1720758655777,-1037.01,0.00013841,2]
[331773752,1720758655787,-690.84,0.00013841,2]
[331773753,1720758655796,-509.41,0.00013841,2]
[331773754,1720758655806,-589.35,0.00013841,2]
[331773755,1720758655816,-500.0,0.00013841,2]
[331773756,1720758655825,-500.0,0.00013841,2]
[331773757,1720758655835,-500.0,0.00013841,2]
[331773758,1720758655845,-500.0,0.00013841,2]
[331773759,1720758655855,-551.28,0.00013841,2]
[331773760,1720758655864,-556.86,0.00013841,2]
[331773761,1720758655874,-746.04,0.00013841,2]
[331773762,1720758655884,-666.65,0.00013841,2]
[331773763,1720758655893,-753.45,0.00013841,2]
[331773764,1720758655903,-500.0,0.00013841,2]
[331773765,1720758655913,-790.62,0.00013841,2]
[331773766,1720758655923,-854.79,0.00013841,2]
[331773767,1720758655933,-721.56,0.00013841,2]
[331773768,1720758655943,-532.04,0.00013841,2]
[331773769,1720758655953,-1494.4,0.00013841,2]
[331773770,1720758655963,-511.57515673,0.00013841,2]
[331773771,1720758655972,-1285.5,0.00013841,2]
[331773772,1720758655982,-1099.28,0.00013841,2]
[331773773,1720758655994,-628.38,0.00013841,2]
[331773774,1720758656004,-500.0,0.00013841,2]
[331773775,1720758656014,-500.0,0.00013841,2]
[331773776,1720758656024,-500.0,0.00013841,2]
[331773777,1720758656034,-500.0,0.00013841,2]
[331773778,1720758656044,-862.92,0.00013841,2]
[331773779,1720758656054,-500.0,0.00013841,2]
[331773780,1720758656063,-500.0,0.00013841,2]
[331773781,1720758656083,-736.95,0.00013841,2]
[331773782,1720758656094,-1127.31,0.00013841,2]
[331773783,1720758656104,-500.0,0.00013841,2]
[331773784,1720758656114,-500.0,0.00013841,2]
[331773785,1720758656124,-953.17,0.00013841,2]
[331773786,1720758656134,-744.3,0.00013841,2]
[331773787,1720758656145,-1553.0,0.00013841,2]
[331773788,1720758656155,-933.88,0.00013841,2]
[331773789,1720758656166,-500.0,0.00013841,2]
[331773790,1720758656176,-560.14,0.00013841,2]
[331773791,1720758656186,-696.07,0.00013841,2]
[331773792,1720758656198,-500.0,0.00013841,2]
[331773793,1720758656208,-602.46,0.00013841,2]
[331773794,1720758656219,-1115.43,0.00013841,2]
[331773795,1720758656230,-759.14,0.00013841,2]
[331773796,1720758656242,-649.78,0.00013841,2]
[331773797,1720758656254,-748.76,0.00013841,2]
[331773798,1720758656264,-979.08,0.00013841,2]
[331773799,1720758656275,-686.21,0.00013841,2]
[331773800,1720758656285,-500.0,0.00013841,2]
[331773801,1720758656296,-500.0,0.00013841,2]
[331773802,1720758656306,-519.55,0.00013841,2]
[331773803,1720758656316,-500.0,0.00013841,2]
[331773804,1720758656328,-500.0,0.00013841,2]
[331773805,1720758656339,-7562.45,0.00013841,2]
[331773806,1720758656349,-531.97611942,0.00013841,2]
[331773807,1720758656360,-500.0,0.00013841,2]
[331773808,1720758656370,-500.0,0.00013841,2]
[331773809,1720758656380,-2033.84,0.00013841,2]
[331773810,1720758656390,-516.63,0.00013841,2]
[331773811,1720758656401,-500.0,0.00013841,2]
[331773812,1720758656411,-500.0,0.00013841,2]
[331773813,1720758656422,-176.1,0.00013841,2]
[331773814,1720758656432,-1010.41,0.00013841,2]
[331773815,1720758656442,-500.0,0.00013841,2]
[331773816,1720758656452,-608.38,0.00013841,2]
[331773817,1720758656462,-500.0,0.00013841,2]
[331773818,1720758656473,-500.0,0.00013841,2]
[331773819,1720758656483,-1458.84,0.00013841,2]
[331773820,1720758656494,-500.0,0.00013841,2]
[331773821,1720758656505,-5430.47,0.00013841,2]
[331773822,1720758656657,-500.0,0.00013841,2]
[331773823,1720758656667,-500.0,0.00013841,2]
[331773824,1720758656677,-500.0,0.00013841,2]
[331773825,1720758656687,-778.99,0.00013841,2]
[331773826,1720758656696,-500.0,0.00013841,2]
[331773827,1720758656706,-1872.75,0.00013841,2]
[331773828,1720758656717,-500.0,0.00013841,2]
[331773829,1720758656728,-636.45,0.00013841,2]
[331773830,1720758656738,-831.67,0.00013841,2]
[331773831,1720758656748,-501.38,0.00013841,2]
[331773832,1720758656757,-500.0,0.00013841,2]
[331773833,1720758656768,-585.83,0.00013841,2]
[331773834,1720758656778,-500.0,0.00013841,2]
[331773835,1720758656787,-500.0,0.00013841,2]
[331773836,1720758656797,-500.0,0.00013841,2]
[331773837,1720758656807,-500.0,0.00013841,2]
[331773838,1720758656817,-984.46,0.00013841,2]
[331773839,1720758656827,-500.0,0.00013842,2]
[331773840,1720758656837,-500.0,0.00013842,2]
[331773841,1720758656847,-500.0,0.00013842,2]
[331773842,1720758656857,-500.0,0.00013842,2]
[331773843,1720758656867,-500.0,0.00013842,2]
[331773844,1720758656877,-500.0,0.00013842,2]
[331773845,1720758656887,-500.0,0.00013842,2]
[331773846,1720758656897,-500.0,0.00013842,2]
[331773847,1720758656907,-246.38642128,0.00013842,2]
[331773848,1720758656916,-500.0,0.00013842,2]
[331773849,1720758656926,-500.0,0.00013842,2]
[331773850,1720758656936,-500.0,0.00013842,2]
[331773851,1720758656946,-500.0,0.00013842,2]
[331773852,1720758656957,-500.0,0.00013842,2]
[331773853,1720758656968,-297.19739272,0.00013842,2]
[331773854,1720758656978,-500.0,0.00013842,2]
[331773855,1720758656987,-500.0,0.00013842,2]
[331773856,1720758656997,-500.0,0.00013842,2]
[331773857,1720758657007,-500.0,0.00013842,2]
[331773858,1720758657017,-500.0,0.00013842,2]
[331773859,1720758657027,-519.41,0.00013842,2]
[331773860,1720758657037,-500.0,0.00013842,2]
[331773861,1720758657047,-281.31323917,0.00013842,2]
[331773862,1720758657056,-500.0,0.00013842,2]
[331773863,1720758657066,-500.0,0.00013842,2]
[331773864,1720758657077,-500.0,0.00013842,2]
[331773865,1720758657086,-500.0,0.00013842,2]
[331773866,1720758657097,-500.0,0.00013842,2]
[331773867,1720758657107,-500.0,0.00013842,2]
[331773868,1720758657117,-500.0,0.00013842,2]
[331773869,1720758657126,-500.0,0.00013842,2]
[331773870,1720758657136,-500.0,0.00013842,2]
[331773871,1720758657146,-332.35216209,0.00013842,2]
[331773872,1720758657156,-500.0,0.00013842,2]
[331773873,1720758657166,-801.0,0.00013842,2]
[331773874,1720758657176,-500.0,0.00013842,2]
[331773875,1720758657186,-500.0,0.00013842,2]
[331773876,1720758657196,-639.39939741,0.00013842,2]
[331773877,1720758657206,-500.0,0.00013842,2]
[331773878,1720758657215,-500.0,0.00013842,2]
[331773879,1720758657225,-500.0,0.00013842,2]
[331773880,1720758657234,-264.83,0.00013842,2]
[331773881,1720758657249,-500.0,0.00013842,2]
[331773882,1720758657260,-500.0,0.00013842,2]
[331773883,1720758657271,-500.0,0.00013842,2]
[331773884,1720758657280,-500.0,0.00013842,2]
[331773885,1720758657291,-500.0,0.00013842,2]
[331773886,1720758657301,-500.0,0.00013842,2]
[331773887,1720758657310,-500.0,0.00013842,2]
[331773888,1720758657321,-500.0,0.00013842,2]
[331773889,1720758657331,-500.0,0.00013842,2]
[331773890,1720758657341,-500.0,0.00013842,2]
[331773891,1720758657351,-500.0,0.00013842,2]
[331773892,1720758657360,-289.99001147,0.00013842,2]
[331773893,1720758657370,-500.0,0.00013842,2]
[331773894,1720758657380,-500.0,0.00013842,2]
[331773895,1720758657390,-500.0,0.00013842,2]
[331773896,1720758657401,-500.0,0.00013842,2]
[331773897,1720758657411,-771.42,0.00013842,2]
[331773898,1720758657421,-500.0,0.00013842,2]
[331773899,1720758657431,-737.94,0.00013842,2]
[331773900,1720758657441,-500.0,0.00013842,2]
[331773901,1720758657450,-500.0,0.00013842,2]
[331773902,1720758657460,-500.0,0.00013842,2]
[331773903,1720758657469,-500.65,0.00013842,2]
[331773904,1720758657479,-589.82129476,0.00013842,2]
[331773905,1720758657490,-500.0,0.00013842,2]
[331773906,1720758657500,-521.22,0.00013842,2]
[331773907,1720758657510,-703.39,0.00013842,2]
[331773908,1720758657519,-500.0,0.00013842,2]
[331773909,1720758657530,-500.0,0.00013842,2]
[331773910,1720758657540,-500.0,0.00013842,2]
[331773911,1720758657549,-500.0,0.00013842,2]
[331773912,1720758657559,-500.0,0.00013842,2]
[331773913,1720758657569,-500.0,0.00013842,2]
[331773914,1720758657578,-500.0,0.00013842,2]
[331773915,1720758657589,-500.0,0.00013842,2]
[331773916,1720758657598,-500.0,0.00013842,2]
[331773917,1720758657608,-461.30936812,0.00013842,2]
[331773918,1720758657618,-500.0,0.00013842,2]
[331773919,1720758657627,-500.0,0.00013842,2]
[331773920,1720758657645,-885.71,0.00013842,2]
[331773921,1720758657656,-613.49,0.00013842,2]
[331773922,1720758657666,-500.0,0.00013842,2]
[331773923,1720758657676,-500.0,0.00013842,2]
[331773924,1720758657686,-500.0,0.00013842,2]
[331773925,1720758657696,-594.95,0.00013842,2]
[331773926,1720758657705,-501.22,0.00013842,2]
[331773927,1720758657714,-500.0,0.00013842,2]
[331773928,1720758657724,-500.0,0.00013842,2]
[331773929,1720758657734,-536.43,0.00013842,2]
[331773930,1720758657745,-500.0,0.00013842,2]
[331773931,1720758657755,-500.0,0.00013842,2]
[331773932,1720758657765,-500.0,0.00013842,2]
[331773933,1720758657774,-500.0,0.00013842,2]
[331773934,1720758657784,-355.72,0.00013842,2]
[331773935,1720758657794,-500.0,0.00013842,2]
[331773936,1720758657804,-595.33,0.00013842,2]
[331773937,1720758657814,-500.0,0.00013842,2]
[331773938,1720758657824,-500.0,0.00013842,2]
[331773939,1720758657834,-550.5,0.00013842,2]
[331773940,1720758657844,-515.02,0.00013842,2]
[331773941,1720758657854,-500.0,0.00013842,2]
[331773942,1720758657864,-500.0,0.00013842,2]
[331773943,1720758657876,-500.0,0.00013842,2]
[331773944,1720758657886,-569.79,0.00013842,2]
[331773945,1720758657896,-761.85,0.00013842,2]
[331773946,1720758657906,-500.0,0.00013842,2]
[331773947,1720758657916,-500.0,0.00013842,2]
[331773948,1720758657925,-500.0,0.00013842,2]
[331773949,1720758657936,-500.0,0.00013842,2]
[331773950,1720758657946,-500.0,0.00013842,2]
[331773951,1720758657956,-500.0,0.00013842,2]
[331773952,1720758657966,-500.0,0.00013842,2]
[331773953,1720758657975,-500.0,0.00013842,2]
[331773954,1720758657985,-500.0,0.00013842,2]
[331773955,1720758657996,-500.0,0.00013842,2]
[331773956,1720758658006,-500.0,0.00013842,2]
[331773957,1720758658016,-500.0,0.00013842,2]
[331773958,1720758658026,-500.0,0.00013842,2]
[331773959,1720758658035,-500.0,0.00013842,2]
[331773960,1720758658046,-500.0,0.00013842,2]
[331773961,1720758658056,-500.0,0.00013842,2]
[331773962,1720758658065,-500.0,0.00013842,2]
[331773963,1720758658074,-593.00765368,0.00013842,2]
[331773964,1720758658085,-500.0,0.00013842,2]
[331773965,1720758658094,-500.0,0.00013842,2]
[331773966,1720758658104,-500.0,0.00013842,2]
[331773967,1720758658114,-500.0,0.00013842,2]
[331773968,1720758658124,-500.0,0.00013842,2]
[331773969,1720758658134,-500.0,0.00013842,2]
[331773970,1720758658143,-500.0,0.00013842,2]
[331773971,1720758658153,-500.0,0.00013842,2]
[331773972,1720758658167,-500.0,0.00013842,2]
[331773973,1720758658178,-500.0,0.00013842,2]
[331773974,1720758658189,-452.91539641,0.00013842,2]
[331773975,1720758658199,-500.0,0.00013842,2]
[331773976,1720758658209,-879.74,0.00013842,2]
[331773977,1720758658219,-500.0,0.00013842,2]
[331773978,1720758658229,-500.0,0.00013842,2]
[331773979,1720758658240,-500.0,0.00013842,2]
[331773980,1720758658253,-510.38,0.00013842,2]
[331773981,1720758658263,-508.09,0.00013842,2]
[331773982,1720758658273,-647.66,0.00013842,2]
[331773983,1720758658283,-500.0,0.00013842,2]
[331773984,1720758658294,-500.0,0.00013842,2]
[331773985,1720758658304,-779.84,0.00013842,2]
[331773986,1720758658314,-500.0,0.00013842,2]
[331773987,1720758658326,-500.0,0.00013842,2]
[331773988,1720758658335,-500.0,0.00013842,2]
[331773989,1720758658345,-500.0,0.00013842,2]
[331773990,1720758658355,-500.0,0.00013842,2]
[331773991,1720758658366,-500.0,0.00013842,2]
[331773992,1720758658377,-500.0,0.00013842,2]
[331773993,1720758658387,-500.0,0.00013842,2]
[331773994,1720758658397,-500.0,0.00013842,2]
[331773995,1720758658406,-500.0,0.00013842,2]
[331773996,1720758658416,-500.0,0.00013842,2]
[331773997,1720758658426,-909.35,0.00013842,2]
[331773998,1720758658435,-270.56,0.00013842,2]
[331773999,1720758658445,-500.0,0.00013842,2]
[331774000,1720758658455,-500.0,0.00013842,2]
[331774001,1720758658465,-269.07,0.00013842,2]
[331774002,1720758658474,-500.0,0.00013842,2]
[331774003,1720758658485,-305.35,0.00013842,2]
[331774004,1720758658496,-500.0,0.00013842,2]
[331774005,1720758658506,-500.0,0.00013842,2]
[331774006,1720758658517,-429.96,0.00013842,2]
[331774007,1720758658528,-500.0,0.00013842,2]
[331774008,1720758658539,-501.72,0.00013842,2]
[331774009,1720758658549,-500.0,0.00013842,2]
[331774010,1720758658559,-500.0,0.00013842,2]
[331774011,1720758658569,-500.0,0.00013842,2]
[331774012,1720758658578,-619.43,0.00013842,2]
[331774013,1720758658588,-500.0,0.00013842,2]
[331774014,1720758658598,-220.1,0.00013842,2]
[331774015,1720758658608,-567.43,0.00013842,2]
[331774016,1720758658618,-500.0,0.00013842,2]
[331774017,1720758658628,-500.0,0.00013842,2]
[331774018,1720758658638,-500.0,0.00013842,2]
[331774019,1720758658649,-500.0,0.00013842,2]
[331774020,1720758658658,-500.0,0.00013842,2]
[331774021,1720758658668,-500.0,0.00013842,2]
[331774022,1720758658679,-1018.14,0.00013842,2]
[331774023,1720758658689,-500.0,0.00013842,2]
[331774024,1720758658699,-500.0,0.00013842,2]
[331774025,1720758658710,-1152.0,0.00013842,2]
[331774026,1720758658720,-678.9,0.00013842,2]
[331774027,1720758658729,-500.0,0.00013842,2]
[331774028,1720758658739,-790.29,0.00013842,2]
[331774029,1720758658750,-500.0,0.00013842,2]
[331774030,1720758658759,-500.0,0.00013842,2]
[331774031,1720758658769,-500.0,0.00013842,2]
[331774032,1720758658779,-500.0,0.00013842,2]
[331774033,1720758658790,-500.0,0.00013842,2]
[331774034,1720758658800,-672.45,0.00013842,2]
[331774035,1720758658809,-500.0,0.00013842,2]
[331774036,1720758658819,-611.68,0.00013842,2]
[331774037,1720758658829,-698.41,0.00013842,2]
[331774038,1720758658839,-500.0,0.00013842,2]
[331774039,1720758658849,-555.24848245,0.00013842,2]
[331774040,1720758658859,-500.0,0.00013842,2]
[331774041,1720758658869,-500.0,0.00013842,2]
[331774042,1720758658878,-574.86289922,0.00013842,2]
[331774043,1720758658890,-500.0,0.00013842,2]
[331774044,1720758658900,-1563.28,0.00013842,2]
[331774045,1720758658910,-500.0,0.00013842,2]
[331774046,1720758658919,-500.0,0.00013842,2]
[331774047,1720758658930,-606.81,0.00013842,2]
[331774048,1720758658940,-500.0,0.00013842,2]
[331774049,1720758658951,-500.0,0.00013842,2]
[331774050,1720758658961,-395.68273405,0.00013842,2]
[331774051,1720758658971,-180.26,0.00013842,2]
[331774052,1720758658981,-500.0,0.00013842,2]
[331774053,1720758658991,-500.0,0.00013842,2]
[331774054,1720758659001,-500.0,0.00013842,2]
[331774055,1720758659011,-466.50852616,0.00013842,2]
[331774056,1720758659021,-876.88,0.00013842,2]
[331774057,1720758659031,-500.0,0.00013842,2]
[331774058,1720758659040,-500.0,0.00013842,2]
[331774059,1720758659050,-500.0,0.00013842,2]
[331774060,1720758659060,-500.0,0.00013842,2]
[331774061,1720758659070,-500.0,0.00013842,2]
[331774062,1720758659080,-1414.21,0.00013842,2]
[331774063,1720758659091,-500.0,0.00013842,2]
[331774064,1720758659100,-500.0,0.00013842,2]
[331774065,1720758659111,-500.0,0.00013842,2]
[331774066,1720758659121,-700.97,0.00013842,2]
[331774067,1720758659131,-586.72,0.00013842,2]
[331774068,1720758659141,-500.0,0.00013842,2]
[331774069,1720758659151,-373.55,0.00013842,2]
[331774070,1720758659161,-500.0,0.00013842,2]
[331774071,1720758659171,-500.0,0.00013842,2]
[331774072,1720758659182,-747.32,0.00013842,2]
[331774073,1720758659192,-500.0,0.00013842,2]
[331774074,1720758659202,-519.4,0.00013842,2]
[331774075,1720758659212,-508.02,0.00013842,2]
[331774076,1720758659221,-500.0,0.00013842,2]
[331774077,1720758659231,-500.0,0.00013842,2]
[331774078,1720758659243,-500.0,0.00013842,2]
[331774079,1720758659255,-500.0,0.00013842,2]
[331774080,1720758659265,-500.0,0.00013842,2]
[331774081,1720758659275,-500.0,0.00013842,2]
[331774082,1720758659286,-500.0,0.00013842,2]
[331774083,1720758659295,-500.0,0.00013842,2]
[331774084,1720758659305,-854.24,0.00013842,2]
[331774085,1720758659315,-500.0,0.00013842,2]
[331774086,1720758659327,-500.0,0.00013842,2]
[331774087,1720758659337,-559.85,0.00013842,2]
[331774088,1720758659347,-694.46,0.00013842,2]
[331774089,1720758659363,-500.0,0.00013842,2]
[331774090,1720758659376,-500.0,0.00013842,2]
[331774091,1720758659386,-158.57037872,0.00013842,2]
[331774092,1720758659396,-500.0,0.00013842,2]
[331774093,1720758659406,-500.0,0.00013842,2]
[331774094,1720758659416,-500.0,0.00013842,2]
[331774095,1720758659425,-500.0,0.00013842,2]
[331774096,1720758659435,-579.52,0.00013842,2]
[331774097,1720758659446,-500.0,0.00013842,2]
[331774098,1720758659456,-500.0,0.00013842,2]
[331774099,1720758659466,-573.48,0.00013842,2]
[331774100,1720758659476,-621.28,0.00013842,2]
[331774101,1720758659486,-500.0,0.00013842,2]
[331774102,1720758659497,-500.0,0.00013842,2]
[331774103,1720758659507,-500.0,0.00013842,2]
[331774104,1720758659517,-672.74,0.00013842,2]
[331774105,1720758659526,-500.0,0.00013842,2]
[331774106,1720758659536,-500.0,0.00013842,2]
[331774107,1720758659547,-500.0,0.00013842,2]
[331774108,1720758659557,-500.0,0.00013842,2]
[331774109,1720758659567,-500.0,0.00013842,2]
[331774110,1720758659578,-500.0,0.00013842,2]
[331774111,1720758659588,-500.0,0.00013842,2]
[331774112,1720758659598,-500.0,0.00013842,2]
[331774113,1720758659608,-500.0,0.00013842,2]
[331774114,1720758659617,-500.0,0.00013842,2]
[331774115,1720758659627,-513.9,0.00013842,2]
[331774116,1720758659637,-500.0,0.00013842,2]
[331774117,1720758659646,-500.0,0.00013842,2]
[331774118,1720758659656,-500.0,0.00013842,2]
[331774119,1720758659666,-500.0,0.00013842,2]
[331774120,1720758659675,-874.84,0.00013842,2]
[331774121,1720758659685,-500.0,0.00013842,2]
[331774122,1720758659695,-500.0,0.00013842,2]
[331774123,1720758659704,-500.0,0.00013842,2]
[331774124,1720758659714,-500.0,0.00013842,2]
[331774125,1720758659724,-500.0,0.00013842,2]
[331774126,1720758659734,-610.95,0.00013842,2]
[331774127,1720758659745,-500.0,0.00013842,2]
[331774128,1720758659754,-500.0,0.00013842,2]
[331774129,1720758659765,-500.0,0.00013842,2]